fUSD/lending_fUSD_20250804
["ID","MTS","AMOUNT","RATE_DAILY","PERIOD"]
[377193558,1754280640859,-2500.0,0.0004779,2]
[377193559,1754280640869,-3199.42091084,0.00047797,20]
[377193560,1754280640879,-165.0272283,0.00047797,15]
[377193561,1754280640889,-596.71,0.00047798,14]
[377193562,1754280640904,-801.4169,0.00047799,120]
[377193563,1754280640914,-5000.0,0.00047799,120]
[377193564,1754280640924,-300.0,0.000478,17]
[377193565,1754280640934,-150.0,0.00047801,7]
[377193566,1754280640945,-480.11,0.00047809,120]
[377193567,1754280640956,-165.02722829,0.00047831,15]
[377193568,1754280640967,-1000.0,0.00047832,14]
[377193569,1754280640979,-150.0,0.00047864,7]
[377193570,1754280640990,-165.02722829,0.00047866,15]
[377193571,1754280640999,-1000.0,0.00047866,14]
[377193572,1754280641009,-500.0,0.00047873,2]
[377193573,1754280641019,-500.0,0.00047873,5]
[377193574,1754280641029,-500.0,0.00047873,10]
[377193575,1754280641039,-500.0,0.00047873,10]
[377193576,1754280641048,-501.69888795,0.00047873,10]
[377193577,1754280641058,-502.84759724,0.00047873,10]
[377193578,1754280641068,-150.0,0.00047876,7]
[377193579,1754280641078,-19855.01648656,0.0004788,4]
[377193588,1754280717796,152.04,0.00013699,2]
[377193590,1754281052156,1003.0,0.00030136,120]
[377193592,1754281130583,2212.12,4.2e-05,2]
[377193593,1754281510507,10901.28192306,0.00019,2]
[377193594,1754281510535,49615.7843451,0.00019,2]
[377193595,1754281510559,12000.0,0.00019,2]
[377193596,1754281510581,12000.0,0.00019,2]
[377193602,1754281575406,10000.0,0.00030137,120]
[377193607,1754281629444,10000.0,0.00030137,120]
[377193611,1754281717729,152.32,0.00013699,2]
[377193625,1754281801332,300.0,0.00018999,2]
[377193626,1754281801443,1200.0,0.00018999,2]
[377193630,1754281831620,-1888.0,0.00019,2]
[377193631,1754281831646,-52284.00320794,0.00019,2]
[377193632,1754281831657,-6197.90573203,0.00019,2]
[377193633,1754281831667,-1200.0,0.0002081,2]
[377193634,1754281831677,-204.7518014,0.000219,6]
[377193635,1754281831686,-202.82,0.00022,2]
[377193636,1754281831695,-202.82,0.00023761,2]
[377193637,1754281831704,-946.33257895,0.00024658,2]
[377193638,1754281831714,-824.712,0.00024958,2]
[377193639,1754281831724,-202.82,0.00025523,7]
[377193640,1754281831733,-202.82,0.00027284,7]
[377193641,1754281831742,-1898.72093503,0.0002739,2]
[377193642,1754281831752,-364.25244109,0.00028,60]
[377193643,1754281831762,-202.82,0.00029046,30]
[377193644,1754281831771,-202.82,0.00030807,30]
[377193645,1754281831781,-600.0,0.00031134,2]
[377193646,1754281831791,-569.01,0.00031134,2]
[377193647,1754281831802,-155.91508966,0.00032127,2]
[377193648,1754281831833,-35.69491034,0.00032127,2]
[377193649,1754281831843,-202.82,0.00032569,30]
[377193650,1754281831853,-500.0,0.0003268,5]
[377193651,1754281831862,-161.44407961,0.0003268,5]
[377193652,1754281831872,-397.99617915,0.0003268,5]
[377193653,1754281831882,-153.71,0.00033283,2]
[377193654,1754281831891,-200.0,0.00034,30]
[377193655,1754281831901,-150.0,0.000342,2]
[377193656,1754281831911,-152.32,0.00034247,2]
[377193657,1754281831920,-202.82,0.00034331,30]
[377193658,1754281831929,-3121.72,0.00035,2]
[377193659,1754281831939,-157.37918434,0.00035991,2]
[377193660,1754281831948,-500.0,0.00036073,5]
[377193661,1754281831957,-500.0,0.00036073,5]
[377193662,1754281831967,-500.0,0.00036073,5]
[377193663,1754281831976,-311.62552942,0.00036073,5]
[377193664,1754281831985,-502.67550757,0.00036073,3]
[377193665,1754281831995,-500.0,0.00036073,5]
[377193666,1754281832005,-500.0,0.00036073,5]
[377193667,1754281832015,-501.85312784,0.00036073,5]
[377193668,1754281832025,-365.45117928,0.00036073,5]
[377193669,1754281832035,-500.0,0.00036092,30]
[377193671,1754281832045,-500.0,0.00036092,30]
[377193674,1754281832055,-500.0,0.00036092,30]
[377193676,1754281832064,-302.44428023,0.00036092,30]
[377193679,1754281832073,-155.277,0.00036092,2]
[377193682,1754281832083,-654.80830161,0.00036092,90]
[377193685,1754281832092,-385.85631509,0.00036092,120]
[377193688,1754281832108,-193.23225725,0.00036092,91]
[377193692,1754281832127,-153.04792733,0.00036092,8]
[377193694,1754281832137,-243.55407406,0.00036092,30]
[377193696,1754281832147,-224.96711247,0.00036092,7]
[377193698,1754281832156,-23774.64989746,0.00036092,120]
[377193699,1754281832165,-538.28683718,0.00036092,7]
[377193701,1754281832174,-331.00116308,0.00036092,120]
[377193704,1754281832184,-1502.29140324,0.00036092,120]
[377193705,1754281832195,-400.56848814,0.00036092,120]
[377193707,1754281832205,-1047.45232616,0.00036092,7]
[377193709,1754281832214,-1698.06887835,0.00036092,2]
[377193711,1754281832224,-469.7387943,0.00036092,7]
[377193712,1754281832233,-41100.49231464,0.00036092,2]
[377193713,1754281832242,-16353.18579347,0.00036092,2]
[377193714,1754281832252,-20995.76413448,0.00036092,2]
[377193715,1754281832261,-14505.89914926,0.00036092,120]
[377193716,1754281832271,-5562.56062212,0.00036092,2]
[377193717,1754281832281,-151.11707303,0.00036092,120]
[377193718,1754281832291,-27154.25689129,0.00036092,2]
[377193719,1754281832299,-7904.42834085,0.00036092,2]
[377193720,1754281832309,-190.01721762,0.00036092,120]
[377193721,1754281832318,-10288.85980796,0.00036092,2]
[377193722,1754281832327,-6755.15319397,0.00036092,2]
[377193723,1754281832336,-181.76702407,0.00036092,120]
[377193724,1754281832346,-202.82,0.00036092,60]
[377193725,1754281832355,-500.0,0.00036164,2]
[377193726,1754281832364,-194.65,0.000362,7]
[377193727,1754281832373,-211.425049,0.00036277,2]
[377193728,1754281832382,-457.2201239,0.00036315,2]
[377193729,1754281832392,-841.59890878,0.00036315,2]
[377193730,1754281832401,-164.55764332,0.00036592,2]
[377193731,1754281832413,-153.71,0.00036611,2]
[377193732,1754281832423,-1000.0,0.00036621,5]
[377193733,1754281832433,-1006.93417179,0.00036621,5]
[377193734,1754281832444,-500.0,0.00036658,7]
[377193735,1754281832454,-500.0,0.00037118,7]
[377193736,1754281832464,-504.76803019,0.00037168,5]
[377193737,1754281832474,-280.0,0.000374,30]
[377193738,1754281832484,-2462.35219623,0.000375,120]
[377193739,1754281832493,-500.0,0.00038086,7]
[377193740,1754281832503,-429.72,0.0003825,2]
[377193741,1754281832514,-7029.72897919,0.00038748,31]
[377193742,1754281832524,-156.02,0.00039123,2]
[377193743,1754281832533,-488.28930833,0.0003945,5]
[377193744,1754281832543,-501.85899435,0.0003945,5]
[377193745,1754281832552,-153.71,0.0003994,2]
[377193746,1754281832563,-429.72,0.0003998,2]
[377193747,1754281832572,-455.96,0.00040458,2]
[377193748,1754281832581,-218.93,0.00040458,120]
[377193749,1754281832592,-500.0,0.00040808,30]
[377193750,1754281832864,-94.33940587,0.00041,90]
[377193751,1754281832916,-76.66059413,0.00041,90]
[377193752,1754281832926,-391.0,0.0004114,30]
[377193753,1754281832937,-332.03881757,0.00041637,30]
[377193754,1754281832964,-371.67424633,0.00041637,30]
[377193755,1754281832974,-1795.41051751,0.00041696,120]
[377193756,1754281833000,-485.01153519,0.00041696,120]
[377193781,1754281839940,-150.0,0.000225,3]
[377193782,1754281839951,-470.5779473,0.00041696,120]
[377193783,1754281839960,-429.72,0.00041711,120]
[377193784,1754281839970,-485.812,0.00041711,62]
[377193785,1754281839981,-877.62985148,0.000418,120]
[377193786,1754281839991,-200.0,0.00041863,2]
[377193787,1754281840001,-1504.26,0.00041902,30]
[377193788,1754281840011,-265.81,0.00041902,2]
[377193789,1754281840020,-150.99,0.00041902,2]
[377193790,1754281840030,-299.99,0.00041902,120]
[377193791,1754281840040,-250.0,0.00042696,2]
[377193792,1754281840050,-151.0712207,0.000427,28]
[377193793,1754281840060,-23900.0,0.0004276,2]
[377193794,1754281840069,-500.0,0.000428,10]
[377193795,1754281840079,-500.0,0.000428,10]
[377193797,1754281840088,-174.54,0.00042869,2]
[377193799,1754281840098,-166.17,0.00042869,2]
[377193801,1754281840108,-464.29120051,0.00042877,2]
[377193803,1754281840120,-35.70879949,0.00042877,2]
[377193804,1754281840130,-500.0,0.00042884,2]
[377193805,1754281840139,-192.31,0.00043,120]
[377193806,1754281840149,-540.91261759,0.00043,30]
[377193807,1754281840158,-152.37459447,0.00043,120]
[377193808,1754281840168,-151.83,0.00043072,2]
[377193809,1754281840177,-151.83,0.00043125,2]
[377193810,1754281840187,-151.83,0.00043179,2]
[377193811,1754281840196,-151.83,0.00043233,2]
[377193812,1754281840206,-200.0,0.00043254,2]
[377193813,1754281840216,-153.71,0.00043268,30]
[377193814,1754281840225,-151.83,0.00043287,2]
[377193815,1754281840235,-151.83,0.00043341,2]
[377193816,1754281840245,-502.20617462,0.00043348,10]
[377193817,1754281840254,-500.0,0.00043381,2]
[377193818,1754281840264,-500.0,0.00043381,2]
[377193819,1754281840274,-500.0,0.00043381,2]
[377193820,1754281840574,-500.0,0.00043381,2]
[377193821,1754281840585,-500.0,0.00043381,2]
[377193822,1754281840597,-45.76809848,0.00043381,2]
[377193823,1754281840611,-454.23190152,0.00043381,2]
[377193824,1754281840621,-244.50354011,0.00043381,2]
[377193825,1754281840631,-151.83,0.00043395,2]
[377193826,1754281840641,-429.72,0.00043441,120]
[377193827,1754281840652,-151.83,0.00043448,2]
[377193828,1754281840663,-376.12585186,0.00043462,36]
[377193829,1754281841281,-209.63414814,0.00043462,36]
[377193830,1754281841291,-154.26102665,0.000435,30]
[377193831,1754281841300,-151.83,0.00043502,2]
[377193832,1754281841309,-2498.09,0.00043691,2]
[377193833,1754281841319,-500.0,0.00043704,30]
[377193834,1754281841328,-515.0,0.0004382,10]
[377193835,1754281841337,-514.99994,0.0004382,10]
[377193836,1754281841346,-500.0,0.00043945,2]
[377193837,1754281841355,-547.1938562,0.00044,120]
[377193838,1754281841365,-600.0,0.00044802,14]
[377193839,1754281841374,-569.01,0.00044802,14]
[377193840,1754281841383,-17.06134007,0.0004482,2]
[377193876,1754281845890,-150.0,0.00023,3]
[377193877,1754281845900,-300.0,0.0002524,3]
[377193878,1754281845910,-150.0,0.00044002,3]
[377193879,1754281845920,-937.93865993,0.0004482,2]
[377193880,1754281845930,-3360.0,0.0004482,2]
[377193881,1754281845940,-117.42179557,0.0004482,2]
[377193882,1754281845986,-465.40367373,0.0004482,2]
[377193894,1754281967225,-500.0,0.00019,2]
[377193895,1754282101341,250.0,0.00015,2]
[377193896,1754282101755,1040.0,0.00018999,2]
[377193897,1754282149369,-1754.07169,0.00019,2]
[377193898,1754282149395,-1926.577591,0.00019,2]
[377193899,1754282149420,-2016.47344,0.00019,2]
[377193900,1754282149442,-502.877279,0.00019,8]
[377193901,1754282202224,-72.122721,0.00019,8]
[377193902,1754282613779,154.5,0.00013699,2]
[377193903,1754282886822,203.0,0.00030137,120]
[377193905,1754283031927,-244.94621,0.00024349,2]
[377193906,1754283031938,-451.24431567,0.00024472,2]
[377193907,1754283031948,-10066.96755793,0.00024534,2]
[377193908,1754283031958,-300.0,0.00024634,2]
[377193909,1754283031969,-250.0,0.00024634,2]
[377193910,1754283031979,-1200.0,0.00024696,2]
[377193911,1754283031988,-1685.06090666,0.00024958,2]
[377193912,1754283032000,-654.85147341,0.00024958,2]
[377193913,1754283032012,-679.50114846,0.00024958,2]
[377193914,1754283032022,-154.5,0.00026027,2]
[377193915,1754283032031,-250.0,0.00026051,2]
[377193916,1754283032041,-38.90140074,0.000269,16]
[377193917,1754283032215,-163.80288264,0.000269,16]
[377193918,1754283032225,-300.0,0.00027029,2]
[377193919,1754283032235,-93.69866221,0.00027029,2]
[377193924,1754283037959,-150.0,0.00024849,3]
[377193925,1754283037969,-206.30133779,0.00027029,2]
[377193926,1754283037979,-250.0,0.00027029,2]
[377193927,1754283037991,-300.0,0.00027089,3]
[377193928,1754283038002,-216.0,0.0003,2]
[377193929,1754283038012,-2254.07169,0.00032877,7]
[377193930,1754283038022,-1926.577591,0.00032877,7]
[377193931,1754283038034,-2016.47344,0.00032877,7]
[377193932,1754283038043,-469.81,0.00033629,2]
[377193933,1754283038054,-157.0,0.00034,30]
[377193934,1754283038064,-150.0,0.000343,2]
[377193935,1754283038074,-500.0,0.000343,5]
[377193936,1754283038084,-500.0,0.000343,5]
[377193937,1754283038094,-600.0,0.00034672,2]
[377193938,1754283038108,-436.14,0.00034672,2]
[377193939,1754283038120,-153.29,0.00034758,2]
[377193940,1754283038130,-1000.0,0.00034848,5]
[377193941,1754283038140,-506.06088041,0.00034848,5]
[377193943,1754283038151,-469.81,0.00035359,2]
[377193945,1754283038161,-1519.35412072,0.00035396,5]
[377193947,1754283038170,-273.60093565,0.00035858,7]
[377193949,1754283038185,-188.54016609,0.00036086,30]
[377193951,1754283038195,-457.2201239,0.00036108,2]
[377193953,1754283038204,-841.59890878,0.00036108,2]
[377193955,1754283038216,-211.425049,0.00036108,2]
[377193957,1754283038226,-154.2,0.000365,7]
[377193959,1754283038235,-209.37210097,0.000365,120]
[377193960,1754283038246,-388.649,0.00036626,45]
[377193962,1754283038255,-2254.07169,0.00036668,2]
[377193964,1754283038266,-1926.577591,0.00036668,2]
[377193966,1754283038275,-2016.47344,0.00036668,2]
[377193968,1754283038285,-157.192194,0.00036668,2]
[377193971,1754283038294,-469.81,0.00037089,2]
[377193973,1754283038303,-154.5,0.00038356,2]
[377193975,1754283038313,-500.0,0.0003866,7]
[377193977,1754283038322,-469.81,0.0003882,2]
[377193979,1754283038332,-234.9,0.00038826,2]
[377193981,1754283038343,-346.34,0.00039008,2]
[377193983,1754283038353,-23900.0,0.00039097,2]
[377193985,1754283038363,-250.0,0.00039376,2]
[377193987,1754283038372,-165.98,0.00039394,2]
[377193989,1754283038382,-2875.5,0.00039429,2]
[377193991,1754283038392,-515.0,0.00039484,2]
[377193993,1754283038401,-3400.0,0.000395,120]
[377193995,1754283038410,-165.98,0.00039591,2]
[377193997,1754283038420,-2498.09,0.00039618,2]
[377193999,1754283038429,-165.98,0.00039788,2]
[377194001,1754283038438,-2434.28,0.00039901,2]
[377194003,1754283038448,-227.98,0.00040021,2]
[377194005,1754283038457,-666.0,0.00040241,3]
[377194007,1754283038467,-234.9,0.00040282,2]
[377194009,1754283038476,-1000.0,0.00040458,2]
[377194011,1754283038486,-2254.07169,0.00040503,7]
[377194013,1754283038495,-1926.577591,0.00040503,7]
[377194015,1754283038505,-2016.47344,0.00040503,7]
[377194016,1754283038514,-157.192194,0.00040503,7]
[377194017,1754283038524,-156.609953,0.00040503,7]
[377194018,1754283038534,-469.81,0.0004055,2]
[377194019,1754283038543,-346.34,0.00040959,2]
[377194020,1754283038552,-515.0,0.00041194,10]
[377194021,1754283038562,-153.71,0.00041703,30]
[377194022,1754283038572,-234.9,0.00041738,2]
[377194023,1754283038582,-469.81,0.0004228,120]
[377194024,1754283038591,-515.0,0.00042903,11]
[377194025,1754283038600,-346.34,0.00042909,2]
[377194026,1754283038610,-394.26814659,0.00043027,120]
[377194027,1754283038619,-1664.9,0.00043152,2]
[377194028,1754283038630,-3999.7684,0.00043189,2]
[377194029,1754283038641,-234.9,0.00043194,2]
[377194030,1754283038652,-10000.0,0.000432,30]
[377194031,1754283038663,-150.0,0.000432,2]
[377194032,1754283038675,-161.59239393,0.00043289,10]
[377194033,1754283038688,-412.10621789,0.00043452,2]
[377194034,1754283038698,-150.99,0.00043513,2]
[377194035,1754283038709,-1502.62,0.00043513,2]
[377194036,1754283038720,-299.99,0.00043513,120]
[377194037,1754283038730,-1000.0,0.000437,7]
[377194038,1754283038741,-483.33445308,0.00043704,2]
[377194039,1754283038752,-196.22397361,0.00043911,120]
[377194040,1754283038763,-554.56268827,0.00043956,2]
[377194041,1754283038772,-47066.0,0.00044,2]
[377194042,1754283038783,-469.81,0.00044011,120]
[377194043,1754283038794,-500.0,0.00044113,30]
[377194044,1754283038804,-625.79092346,0.00044208,2]
[377194045,1754283038813,-500.0,0.0004429,30]
[377194046,1754283038824,-1447.15427,0.0004437,23]
[377194047,1754283038834,-697.01915866,0.00044461,2]
[377194048,1754283038844,-17484.39266433,0.000445,7]
[377194049,1754283038855,-230.03443526,0.000445,120]
[377194050,1754283038865,-515.0,0.00044613,16]
[377194051,1754283038878,-234.9,0.0004465,2]
[377194052,1754283038889,-1000.0,0.00044701,2]
[377194053,1754283038900,-768.24739385,0.00044713,2]
[377194054,1754283038910,-500.0,0.00044738,30]
[377194055,1754283038920,-151.0,0.00044801,14]
[377194056,1754283038932,-151.0,0.00044801,14]
[377194057,1754283038942,-151.0,0.00044801,14]
[377194058,1754283038956,-151.0,0.00044801,14]
[377194059,1754283038966,-151.769587,0.00044801,14]
[377194060,1754283038978,-151.0,0.00044801,14]
[377194061,1754283038987,-151.0,0.00044801,14]
[377194062,1754283038997,-295.672472,0.00044801,14]
[377194063,1754283039007,-295.672472,0.00044801,14]
[377194064,1754283039016,-151.0,0.00044801,14]
[377194065,1754283039026,-151.0,0.00044801,14]
[377194066,1754283039036,-151.0,0.00044801,14]
[377194067,1754283039046,-151.0,0.00044801,14]
[377194068,1754283039056,-151.0,0.00044801,14]
[377194069,1754283039066,-879.395519,0.00044801,14]
[377194070,1754283039075,-879.395519,0.00044801,14]
[377194071,1754283039084,-151.0,0.00044801,14]
[377194072,1754283039094,-151.0,0.00044801,14]
[377194073,1754283039106,-153.537041,0.00044801,14]
[377194074,1754283039116,-759.368077,0.00044801,14]
[377194075,1754283039125,-759.368077,0.00044801,14]
[377194076,1754283039134,-155.460324,0.00044801,14]
[377194077,1754283039144,-151.0,0.00044801,14]
[377194078,1754283039154,-151.848957,0.00044801,14]
[377194079,1754283039165,-151.0,0.00044801,14]
[377194080,1754283039174,-151.0,0.00044801,14]
[377194081,1754283039185,-165.75960067,0.00044801,14]
[377194082,1754283039195,-151.0,0.00044801,14]
[377194083,1754283039204,-151.0,0.00044801,14]
[377194084,1754283039291,-500.0,0.00044801,14]
[377194085,1754283039302,-500.0,0.00044801,14]
[377194086,1754283039313,-500.0,0.00044801,14]
[377194087,1754283039322,-500.0,0.00044801,14]
[377194088,1754283039332,-500.0,0.00044801,14]
[377194089,1754283039342,-500.0,0.00044801,14]
[377194090,1754283039351,-416.03518578,0.00044801,14]
[377194091,1754283039360,-500.0,0.00044801,14]
[377194092,1754283039369,-431.42848765,0.00044801,14]
[377194093,1754283039378,-500.0,0.00044801,14]
[377194094,1754283039388,-447.3913417,0.00044801,14]
[377194095,1754283039397,-500.0,0.00044801,14]
[377194096,1754283039407,-324.05703998,0.00044801,14]
[377194097,1754283039416,-500.0,0.00044801,14]
[377194098,1754283039426,-500.0,0.00044801,14]
[377194099,1754283039437,-151.0,0.00044801,14]
[377194100,1754283039446,-154.42831121,0.00044801,14]
[377194101,1754283039456,-151.0,0.00044801,14]
[377194102,1754283039466,-151.0,0.00044801,14]
[377194103,1754283039475,-151.0,0.00044801,14]
[377194104,1754283039485,-152.51158953,0.00044801,14]
[377194105,1754283039495,-500.0,0.00044801,14]
[377194106,1754283039504,-500.0,0.00044801,14]
[377194107,1754283039514,-500.0,0.00044801,14]
[377194108,1754283039524,-500.0,0.00044801,14]
[377194109,1754283039534,-500.0,0.00044801,14]
[377194110,1754283039544,-500.0,0.00044801,14]
[377194111,1754283039554,-500.0,0.00044801,14]
[377194112,1754283039563,-500.0,0.00044801,14]
[377194113,1754283039572,-500.0,0.00044801,14]
[377194114,1754283039582,-500.0,0.00044801,14]
[377194115,1754283039591,-500.0,0.00044801,14]
[377194116,1754283039601,-151.0,0.00044801,14]
[377194117,1754283039610,-151.0,0.00044801,14]
[377194118,1754283039619,-151.0,0.00044801,14]
[377194119,1754283039630,-151.0,0.00044801,14]
[377194121,1754283039640,-151.0,0.00044801,14]
[377194122,1754283039649,-151.0,0.00044801,14]
[377194123,1754283039658,-151.0,0.00044801,14]
[377194124,1754283039669,-151.0,0.00044801,14]
[377194125,1754283039680,-151.0,0.00044801,14]
[377194126,1754283039690,-151.0,0.00044801,14]
[377194127,1754283039701,-151.0,0.00044801,14]
[377194128,1754283039712,-151.0,0.00044801,14]
[377194129,1754283039722,-156.587,0.00044801,14]
[377194130,1754283039733,-162.380719,0.00044801,14]
[377194131,1754283039744,-168.3888056,0.00044801,14]
[377194132,1754283039753,-276.96584476,0.00044801,14]
[377194133,1754283039763,-151.0,0.00044801,14]
[377194134,1754283039773,-280.91920154,0.00044801,14]
[377194135,1754283039784,-160.0,0.00044801,14]
[377194136,1754283039793,-162.44807149,0.00044801,14]
[377194137,1754283039804,-151.0,0.00044801,14]
[377194138,1754283039815,-151.0,0.00044801,14]
[377194139,1754283039824,-151.0,0.00044801,14]
[377194140,1754283039834,-151.0,0.00044801,14]
[377194141,1754283039843,-300.970445,0.00044801,14]
[377194142,1754283039853,-300.970445,0.00044801,14]
[377194143,1754283039862,-151.0,0.00044801,14]
[377194144,1754283039872,-151.0,0.00044801,14]
[377194145,1754283039883,-151.0,0.00044801,14]
[377194146,1754283039893,-157.28520502,0.00044801,14]
[377194147,1754283039903,-151.63335307,0.00044801,14]
[377194148,1754283039912,-277.35679052,0.00044801,14]
[377194149,1754283039921,-287.61899177,0.00044801,14]
[377194150,1754283039931,-298.26089446,0.00044801,14]
[377194151,1754283039940,-309.29654756,0.00044801,14]
[377194152,1754283039950,-320.74051982,0.00044801,14]
[377194153,1754283039960,-332.60791905,0.00044801,14]
[377194154,1754283039969,-344.91441206,0.00044801,14]
[377194155,1754283039978,-500.0,0.00044801,14]
[377194156,1754283039988,-500.0,0.00044801,14]
[377194157,1754283039998,-357.6762453,0.00044801,14]
[377194158,1754283040007,-500.0,0.00044801,14]
[377194159,1754283040017,-370.91026638,0.00044801,14]
[377194160,1754283040026,-500.0,0.00044801,14]
[377194161,1754283040035,-384.63394623,0.00044801,14]
[377194162,1754283040046,-500.0,0.00044801,14]
[377194163,1754283040057,-500.0,0.00044801,14]
[377194164,1754283040066,-398.86540225,0.00044801,14]
[377194165,1754283040075,-500.0,0.00044801,14]
[377194166,1754283040085,-500.0,0.00044801,14]
[377194167,1754283040094,-500.0,0.00044801,14]
[377194168,1754283040105,-560.61881967,0.00044801,14]
[377194169,1754283040116,-500.0,0.00044801,14]
[377194170,1754283040126,-500.0,0.00044801,14]
[377194171,1754283040135,-500.0,0.00044801,14]
[377194172,1754283040145,-500.0,0.00044801,14]
[377194173,1754283040154,-500.0,0.00044801,14]
[377194174,1754283040163,-500.0,0.00044801,14]
[377194175,1754283040173,-151.587228,0.00044801,14]
[377194176,1754283040182,-500.0,0.00044801,14]
[377194177,1754283040191,-500.0,0.00044801,14]
[377194178,1754283040202,-500.0,0.00044801,14]
[377194180,1754283040211,-151.0,0.00044801,14]
[377194181,1754283040221,-500.0,0.00044801,14]
[377194182,1754283040230,-274.9703533,0.00044801,14]
[377194183,1754283040240,-600.0,0.00044801,14]
[377194184,1754283040250,-600.0,0.00044801,14]
[377194185,1754283040260,-600.0,0.00044801,14]
[377194186,1754283040270,-600.0,0.00044801,14]
[377194187,1754283040280,-430.47889915,0.00044801,14]
[377194188,1754283040289,-300.0,0.00044801,14]
[377194189,1754283040299,-300.0,0.00044801,14]
[377194190,1754283040308,-300.0,0.00044801,14]
[377194191,1754283040318,-300.0,0.00044801,14]
[377194192,1754283040327,-300.0,0.00044801,14]
[377194194,1754283040337,-180.37945049,0.00044801,14]
[377194195,1754283040346,-300.0,0.00044801,14]
[377194196,1754283040356,-300.0,0.00044801,14]
[377194197,1754283040365,-300.0,0.00044801,14]
[377194198,1754283040374,-300.0,0.00044801,14]
[377194199,1754283040384,-300.0,0.00044801,14]
[377194200,1754283040393,-300.0,0.00044801,14]
[377194201,1754283040402,-500.0,0.00044801,14]
[377194202,1754283040412,-500.0,0.00044801,14]
[377194203,1754283040421,-500.0,0.00044801,14]
[377194204,1754283040431,-500.0,0.00044801,14]
[377194205,1754283040440,-500.0,0.00044801,14]
[377194206,1754283040450,-500.0,0.00044801,14]
[377194207,1754283040459,-500.0,0.00044801,14]
[377194208,1754283040468,-500.0,0.00044801,14]
[377194209,1754283040478,-500.0,0.00044801,14]
[377194210,1754283040487,-500.0,0.00044801,14]
[377194211,1754283040497,-500.0,0.00044801,14]
[377194212,1754283040506,-500.0,0.00044801,14]
[377194213,1754283040515,-500.0,0.00044801,14]
[377194214,1754283040525,-500.0,0.00044801,14]
[377194215,1754283040534,-500.0,0.00044801,14]
[377194216,1754283040544,-500.0,0.00044801,14]
[377194217,1754283040554,-500.0,0.00044801,14]
[377194218,1754283040563,-500.0,0.00044801,14]
[377194219,1754283040573,-500.0,0.00044801,14]
[377194220,1754283040582,-500.0,0.00044801,14]
[377194221,1754283040592,-364.89100467,0.00044801,14]
[377194222,1754283040602,-500.0,0.00044801,14]
[377194223,1754283040611,-500.0,0.00044801,14]
[377194224,1754283040621,-500.0,0.00044801,14]
[377194225,1754283040630,-500.0,0.00044801,14]
[377194226,1754283040639,-151.0,0.00044801,14]
[377194227,1754283040649,-5391.81600769,0.00044801,14]
[377194228,1754283040658,-5591.31319997,0.00044801,14]
[377194229,1754283040667,-5798.19178837,0.00044801,14]
[377194230,1754283040677,-6012.72488454,0.00044801,14]
[377194231,1754283040686,-6235.19570527,0.00044801,14]
[377194232,1754283040695,-151.0,0.00044801,14]
[377194233,1754283040705,-6465.89794637,0.00044801,14]
[377194234,1754283040714,-6705.13617038,0.00044801,14]
[377194235,1754283040723,-6953.22620868,0.00044801,14]
[377194236,1754283040733,-7210.49557841,0.00044801,14]
[377194237,1754283040742,-7477.28391481,0.00044801,14]
[377194238,1754283040751,-5121.09111769,0.00044801,14]